[Event "*** Titled Tuesday Blitz"]
[Site "Chess.com"]
[Date "2019.01.01"]
[Round "6"]
[White "andresgv36"]
[Black "IakovUlivar"]
[Result "0-1"]
[WhiteElo "2362"]
[BlackElo "2495"]
[TimeControl "180+2"]
[EndTime "14:26:56 PST"]
[Termination "IakovUlivar won by resignation"]

1. d4 {[%clk 0:02:54.3]} 1... Nf6 {[%clk 0:03:00.3]} 2. Bf4 {[%clk 0:02:54.8]}
2... d5 {[%clk 0:02:59.9]} 3. e3 {[%clk 0:02:55.4]} 3... e6 {[%clk 0:03:01.2]}
4. Nf3 {[%clk 0:02:55.6]} 4... c5 {[%clk 0:03:02.5]} 5. Nbd2 {[%clk 0:02:56]}
5... Nc6 {[%clk 0:03:03.6]} 6. c3 {[%clk 0:02:56.8]} 6... Be7 {[%clk 0:03:03.8]}
7. Bd3 {[%clk 0:02:57.2]} 7... Nh5 {[%clk 0:03:04.2]} 8. Be5 {[%clk 0:02:55.2]}
8... f6 {[%clk 0:03:04.2]} 9. Bg3 {[%clk 0:02:55.9]} 9... g6 {[%clk 0:03:04.1]}
10. Qe2 {[%clk 0:01:57]} 10... Bd7 {[%clk 0:02:46.6]} 11. dxc5 {[%clk
0:01:26.6]} 11... Bxc5 {[%clk 0:02:41.5]} 12. e4 {[%clk 0:01:28]} 12... O-O
{[%clk 0:02:16.8]} 13. O-O-O {[%clk 0:01:18.5]} 13... a6 {[%clk 0:01:49.1]} 14.
Nb3 {[%clk 0:01:01.2]} 14... Be7 {[%clk 0:01:38.1]} 15. exd5 {[%clk 0:01:01]}
15... exd5 {[%clk 0:01:36.3]} 16. Nbd4 {[%clk 0:00:55.4]} 16... Re8 {[%clk
0:00:41.2]} 17. Ne6 {[%clk 0:00:46.5]} 17... Bxe6 {[%clk 0:00:40.8]} 18. Qxe6+
{[%clk 0:00:46.1]} 18... Kg7 {[%clk 0:00:40.7]} 19. Qh3 {[%clk 0:00:16.2]} 19...
Qc8 {[%clk 0:00:23.5]} 20. Qxc8 {[%clk 0:00:13.9]} 20... Raxc8 {[%clk
0:00:25.4]} 21. Kb1 {[%clk 0:00:14.1]} 21... Nxg3 {[%clk 0:00:24.3]} 22. hxg3
{[%clk 0:00:15]} 22... Bc5 {[%clk 0:00:24.8]} 23. Rhf1 {[%clk 0:00:13.8]} 23...
Ne5 {[%clk 0:00:24.8]} 24. Bc2 {[%clk 0:00:13.3]} 24... Rcd8 {[%clk 0:00:14.7]}
25. Rd2 {[%clk 0:00:11.5]} 25... Nc4 {[%clk 0:00:12]} 26. Rdd1 {[%clk
0:00:12.9]} 26... Ne5 {[%clk 0:00:07.8]} 27. Bb3 {[%clk 0:00:11.6]} 27... Nxf3
{[%clk 0:00:07.5]} 28. gxf3 {[%clk 0:00:13.5]} 28... d4 {[%clk 0:00:08.8]} 29.
cxd4 {[%clk 0:00:13.8]} 29... Rxd4 {[%clk 0:00:09.5]} 30. Rxd4 {[%clk
0:00:14.4]} 30... Bxd4 {[%clk 0:00:11.4]} 31. Bd5 {[%clk 0:00:15]} 31... Re2
{[%clk 0:00:09.9]} 32. Rd1 {[%clk 0:00:14]} 32... Rxb2+ {[%clk 0:00:08.6]} 33.
Kc1 {[%clk 0:00:15.5]} 33... Bc3 {[%clk 0:00:04.5]} 34. Rd3 {[%clk 0:00:16.5]}
34... Rb5 {[%clk 0:00:04.6]} 35. Bc4 {[%clk 0:00:15.9]} 35... Rc5 {[%clk
0:00:05.5]} 36. Bb3 {[%clk 0:00:12.1]} 36... Bd4+ {[%clk 0:00:05.1]} 37. Kd1
{[%clk 0:00:12.8]} 37... Bxf2 {[%clk 0:00:05.6]} 38. g4 {[%clk 0:00:12.5]} 38...
Rc7 {[%clk 0:00:04.5]} 39. Ke2 {[%clk 0:00:13.7]} 39... Bc5 {[%clk 0:00:05.5]}
40. Rd5 {[%clk 0:00:14.3]} 40... b6 {[%clk 0:00:04.5]} 41. Rd8 {[%clk 0:00:15]}
41... Re7+ {[%clk 0:00:05.5]} 42. Kd3 {[%clk 0:00:13.4]} 42... Re3+ {[%clk
0:00:04.7]} 43. Kc4 {[%clk 0:00:12.2]} 43... Rxf3 {[%clk 0:00:05.2]} 44. Kd5
{[%clk 0:00:13.5]} 44... Rd3+ {[%clk 0:00:04]} 45. Ke6 {[%clk 0:00:14.6]} 45...
Rxd8 {[%clk 0:00:05.9]} 0-1

[Event "*** Titled Tuesday Blitz"]
[Site "Chess.com"]
[Date "2019.01.01"]
[Round "6"]
[White "nitpicker"]
[Black "Orest_Vovk"]
[Result "0-1"]
[WhiteElo "2213"]
[BlackElo "2394"]
[TimeControl "180+2"]
[EndTime "14:27:01 PST"]
[Termination "Orest_Vovk won on time"]

1. d4 {[%clk 0:03:01.9]} 1... h6 {[%clk 0:02:56.3]} 2. e4 {[%clk 0:02:56.8]}
2... g5 {[%clk 0:02:57.4]} 3. h4 {[%clk 0:02:49.2]} 3... g4 {[%clk 0:02:57.7]}
4. Qxg4 {[%clk 0:02:41]} 4... d5 {[%clk 0:02:58.5]} 5. Qe2 {[%clk 0:02:41.5]}
5... dxe4 {[%clk 0:02:59.5]} 6. Qxe4 {[%clk 0:02:42.3]} 6... Nf6 {[%clk
0:03:00.8]} 7. Qd3 {[%clk 0:02:41]} 7... Nc6 {[%clk 0:03:01.7]} 8. c3 {[%clk
0:02:36.7]} 8... Qd5 {[%clk 0:03:02.6]} 9. Nf3 {[%clk 0:02:29]} 9... Bf5 {[%clk
0:03:00.4]} 10. Qc4 {[%clk 0:02:11.9]} 10... Qe4+ {[%clk 0:02:49.3]} 11. Qe2
{[%clk 0:02:08.7]} 11... O-O-O {[%clk 0:02:42]} 12. Qxe4 {[%clk 0:02:04.6]}
12... Nxe4 {[%clk 0:02:43]} 13. Nbd2 {[%clk 0:02:03.2]} 13... Rg8 {[%clk
0:02:40]} 14. g3 {[%clk 0:02:01.6]} 14... e6 {[%clk 0:02:37.9]} 15. Nxe4 {[%clk
0:01:47.2]} 15... Bxe4 {[%clk 0:02:38.7]} 16. Bg2 {[%clk 0:01:48.3]} 16... e5
{[%clk 0:02:34.1]} 17. O-O {[%clk 0:01:39.7]} 17... exd4 {[%clk 0:02:31.9]} 18.
Nxd4 {[%clk 0:01:40.6]} 18... Bxg2 {[%clk 0:02:31.9]} 19. Kxg2 {[%clk 0:01:41]}
19... Nxd4 {[%clk 0:02:33]} 20. cxd4 {[%clk 0:01:42.4]} 20... Rxd4 {[%clk
0:02:34.2]} 21. Be3 {[%clk 0:01:43.8]} 21... Rd5 {[%clk 0:02:17]} 22. Rfd1
{[%clk 0:01:38.2]} 22... Rxd1 {[%clk 0:02:16.4]} 23. Rxd1 {[%clk 0:01:38.9]}
23... Rg6 {[%clk 0:02:17.7]} 24. a3 {[%clk 0:01:32.7]} 24... a6 {[%clk
0:02:07.8]} 25. Kf3 {[%clk 0:01:29.1]} 25... Rd6 {[%clk 0:01:59.3]} 26. Rxd6
{[%clk 0:01:26.6]} 26... cxd6 {[%clk 0:02:01.2]} 27. Ke4 {[%clk 0:01:26.1]}
27... Kd7 {[%clk 0:01:58.6]} 28. Kd5 {[%clk 0:01:27.5]} 28... h5 {[%clk
0:01:53]} 29. Bf4 {[%clk 0:01:28.3]} 29... b5 {[%clk 0:01:47.9]} 30. b3 {[%clk
0:01:19.1]} 30... f5 {[%clk 0:01:44.9]} 31. a4 {[%clk 0:01:16.7]} 31... bxa4
{[%clk 0:01:42.7]} 32. bxa4 {[%clk 0:01:18.6]} 32... Be7 {[%clk 0:01:44.2]} 33.
Bg5 {[%clk 0:01:04.8]} 33... Bf8 {[%clk 0:01:35.3]} 34. a5 {[%clk 0:00:59.4]}
34... Bg7 {[%clk 0:01:32.9]} 35. Bf4 {[%clk 0:00:59.3]} 35... Bc3 {[%clk
0:01:25.9]} 36. Bxd6 {[%clk 0:00:58.6]} 36... Bxa5 {[%clk 0:01:27]} 37. Bc5
{[%clk 0:00:56.1]} 37... Bc7 {[%clk 0:01:15.5]} 38. Ba3 {[%clk 0:00:44.4]} 38...
a5 {[%clk 0:00:44.8]} 39. Bc5 {[%clk 0:00:43.7]} 39... a4 {[%clk 0:00:42.2]} 40.
Ba3 {[%clk 0:00:42.2]} 40... Bd8 {[%clk 0:00:20.1]} 41. Ke5 {[%clk 0:00:33.4]}
41... Be7 {[%clk 0:00:20.1]} 42. Bb2 {[%clk 0:00:30.7]} 42... a3 {[%clk
0:00:21.3]} 43. Ba1 {[%clk 0:00:28.4]} 43... Bc5 {[%clk 0:00:19.9]} 44. f4
{[%clk 0:00:20]} 44... Be3 {[%clk 0:00:16.6]} 45. Bc3 {[%clk 0:00:12.9]} 45...
Bc1 {[%clk 0:00:14.1]} 46. Kd4 {[%clk 0:00:03.5]} 46... Ke6 {[%clk 0:00:14.4]}
47. Kd3 {[%clk 0:00:02.4]} 47... Kd5 {[%clk 0:00:15.2]} 48. Kc2 {[%clk
0:00:02.6]} 48... Bb2 {[%clk 0:00:14.7]} 0-1

[Event "*** Titled Tuesday Blitz"]
[Site "Chess.com"]
[Date "2019.01.01"]
[Round "6"]
[White "HonzaVykouk"]
[Black "VerdeNotte"]
[Result "0-1"]
[WhiteElo "2653"]
[BlackElo "2857"]
[TimeControl "180+2"]
[EndTime "14:27:02 PST"]
[Termination "VerdeNotte won by resignation"]

1. e4 {[%clk 0:03:01.9]} 1... e5 {[%clk 0:02:59.5]} 2. Nf3 {[%clk 0:03:02.6]}
2... Nc6 {[%clk 0:03:00.9]} 3. Bb5 {[%clk 0:03:03.5]} 3... g6 {[%clk 0:03:01.3]}
4. d4 {[%clk 0:03:02.8]} 4... exd4 {[%clk 0:03:01.9]} 5. c3 {[%clk 0:03:04.2]}
5... a6 {[%clk 0:03:01.6]} 6. Bc4 {[%clk 0:03:01.2]} 6... Nf6 {[%clk 0:02:48.3]}
7. cxd4 {[%clk 0:02:54.9]} 7... Bb4+ {[%clk 0:02:40.6]} 8. Bd2 {[%clk
0:02:50.3]} 8... Nxe4 {[%clk 0:02:23.6]} 9. Bxb4 {[%clk 0:02:12.5]} 9... Nxb4
{[%clk 0:02:23.3]} 10. Bxf7+ {[%clk 0:02:13.6]} 10... Kxf7 {[%clk 0:02:23.4]}
11. Qb3+ {[%clk 0:02:14.8]} 11... Kg7 {[%clk 0:02:14.6]} 12. Qxb4 {[%clk
0:02:15]} 12... d6 {[%clk 0:02:02.6]} 13. O-O {[%clk 0:02:10.8]} 13... Bg4
{[%clk 0:01:53.9]} 14. Nbd2 {[%clk 0:02:11]} 14... Nxd2 {[%clk 0:01:52.6]} 15.
Nxd2 {[%clk 0:02:10.5]} 15... Qd7 {[%clk 0:01:25.7]} 16. d5 {[%clk 0:02:08]}
16... Rhf8 {[%clk 0:01:09.8]} 17. Rac1 {[%clk 0:02:07.7]} 17... Rf7 {[%clk
0:00:51.2]} 18. Qc3+ {[%clk 0:01:52.2]} 18... Kg8 {[%clk 0:00:51.8]} 19. Ne4
{[%clk 0:01:53]} 19... Raf8 {[%clk 0:00:51.2]} 20. Ng5 {[%clk 0:01:49.5]} 20...
Re7 {[%clk 0:00:45.7]} 21. h3 {[%clk 0:01:44.1]} 21... Be2 {[%clk 0:00:45]} 22.
Ne6 {[%clk 0:01:32.5]} 22... Bxf1 {[%clk 0:00:42.1]} 23. Nxf8 {[%clk 0:01:32.8]}
23... Qf5 {[%clk 0:00:21.7]} 24. Nxg6 {[%clk 0:00:53.9]} 24... hxg6 {[%clk
0:00:22.4]} 25. Rxf1 {[%clk 0:00:50.4]} 25... Qxd5 {[%clk 0:00:22.6]} 26. Qc2
{[%clk 0:00:46.2]} 26... Qe4 {[%clk 0:00:23]} 27. Qb3+ {[%clk 0:00:44.9]} 27...
Kg7 {[%clk 0:00:21.6]} 28. Rc1 {[%clk 0:00:43.2]} 28... b5 {[%clk 0:00:19.7]}
29. a3 {[%clk 0:00:41.9]} 29... c5 {[%clk 0:00:19.2]} 30. Qg3 {[%clk 0:00:39.6]}
30... Qe5 {[%clk 0:00:20.2]} 31. Qd3 {[%clk 0:00:37.1]} 31... Qxb2 {[%clk
0:00:20.1]} 32. Rd1 {[%clk 0:00:35]} 32... Re6 {[%clk 0:00:21]} 33. Qd5 {[%clk
0:00:34.5]} 33... Qe2 {[%clk 0:00:22]} 34. Rd3 {[%clk 0:00:27.6]} 34... Qe1+
{[%clk 0:00:22.3]} 35. Kh2 {[%clk 0:00:28]} 35... Qe5+ {[%clk 0:00:23.7]} 36.
Qxe5+ {[%clk 0:00:28.6]} 36... dxe5 {[%clk 0:00:25.6]} 37. Kg3 {[%clk
0:00:28.9]} 37... c4 {[%clk 0:00:26.6]} 38. Rd7+ {[%clk 0:00:28]} 38... Kf6
{[%clk 0:00:27.6]} 39. Rc7 {[%clk 0:00:28.1]} 39... Rd6 {[%clk 0:00:28.6]} 40.
f3 {[%clk 0:00:26.4]} 40... Kf5 {[%clk 0:00:25]} 41. h4 {[%clk 0:00:26.7]} 41...
Rd3 {[%clk 0:00:25]} 42. a4 {[%clk 0:00:24.9]} 42... c3 {[%clk 0:00:24.7]} 43.
axb5 {[%clk 0:00:24.3]} 43... axb5 {[%clk 0:00:26.6]} 44. Rc6 {[%clk 0:00:23.2]}
44... b4 {[%clk 0:00:26.2]} 45. Kf2 {[%clk 0:00:24.1]} 45... e4 {[%clk
0:00:25.3]} 46. fxe4+ {[%clk 0:00:20]} 46... Ke5 {[%clk 0:00:25.2]} 47. Rc5+
{[%clk 0:00:17.6]} 47... Kd4 {[%clk 0:00:24.7]} 48. Rb5 {[%clk 0:00:16.9]} 48...
c2 {[%clk 0:00:25.3]} 49. Rxb4+ {[%clk 0:00:17.3]} 49... Kc5 {[%clk 0:00:20.3]}
50. Rb8 {[%clk 0:00:15.8]} 50... Rc3 {[%clk 0:00:21.6]} 51. Rc8+ {[%clk
0:00:12.3]} 51... Kd4 {[%clk 0:00:22.8]} 52. Rxc3 {[%clk 0:00:10.9]} 52... Kxc3
{[%clk 0:00:24]} 0-1

[Event "*** Titled Tuesday Blitz"]
[Site "Chess.com"]
[Date "2019.01.01"]
[Round "6"]
[White "idvidal"]
[Black "Boundless_Strike"]
[Result "0-1"]
[WhiteElo "2468"]
[BlackElo "2473"]
[TimeControl "180+2"]
[EndTime "14:27:02 PST"]
[Termination "Boundless_Strike won by resignation"]

1. d4 {[%clk 0:03:01.9]} 1... Nf6 {[%clk 0:02:59.3]} 2. c4 {[%clk 0:03:00.9]}
2... e5 {[%clk 0:02:58.2]} 3. dxe5 {[%clk 0:03:01]} 3... Ng4 {[%clk 0:02:58.1]}
4. e3 {[%clk 0:03:01.2]} 4... Nxe5 {[%clk 0:02:57]} 5. Nh3 {[%clk 0:03:01.4]}
5... Nbc6 {[%clk 0:02:55.5]} 6. Nc3 {[%clk 0:03:01]} 6... g6 {[%clk 0:02:56.7]}
7. Nf4 {[%clk 0:03:00.3]} 7... Bg7 {[%clk 0:02:58.6]} 8. Be2 {[%clk 0:03:01]}
8... d6 {[%clk 0:02:59.4]} 9. O-O {[%clk 0:03:01.4]} 9... O-O {[%clk 0:03:00.9]}
10. Nfd5 {[%clk 0:03:00.2]} 10... Be6 {[%clk 0:03:00.5]} 11. Rb1 {[%clk
0:02:16.6]} 11... Ne7 {[%clk 0:02:41.3]} 12. b3 {[%clk 0:02:06.1]} 12... c6
{[%clk 0:02:25.2]} 13. Nf4 {[%clk 0:01:58.5]} 13... Bf5 {[%clk 0:01:57.1]} 14.
e4 {[%clk 0:01:49.3]} 14... Be6 {[%clk 0:01:48.7]} 15. Bb2 {[%clk 0:01:38.1]}
15... Qc7 {[%clk 0:01:40.9]} 16. Nxe6 {[%clk 0:01:30.7]} 16... fxe6 {[%clk
0:01:40.5]} 17. f4 {[%clk 0:01:25.3]} 17... Nf7 {[%clk 0:01:37.7]} 18. Bg4
{[%clk 0:01:22.7]} 18... Qd7 {[%clk 0:01:28.2]} 19. Kh1 {[%clk 0:00:59]} 19...
Rad8 {[%clk 0:01:23.2]} 20. Ne2 {[%clk 0:00:51.4]} 20... c5 {[%clk 0:00:38.3]}
21. Bxg7 {[%clk 0:00:42.4]} 21... Kxg7 {[%clk 0:00:38.1]} 22. Qd2 {[%clk
0:00:37.1]} 22... Kg8 {[%clk 0:00:33.4]} 23. Rbd1 {[%clk 0:00:20.1]} 23... Nc6
{[%clk 0:00:33.8]} 24. f5 {[%clk 0:00:18.3]} 24... exf5 {[%clk 0:00:32.8]} 25.
exf5 {[%clk 0:00:19.2]} 25... Nfe5 {[%clk 0:00:34.5]} 26. Bh3 {[%clk 0:00:19.4]}
26... gxf5 {[%clk 0:00:31.2]} 27. Nf4 {[%clk 0:00:15.2]} 27... Nd4 {[%clk
0:00:29.1]} 28. Nd5 {[%clk 0:00:16.4]} 28... Qg7 {[%clk 0:00:23.4]} 29. Qa5
{[%clk 0:00:15.9]} 29... b6 {[%clk 0:00:23.1]} 30. Qd2 {[%clk 0:00:17.3]} 30...
Kh8 {[%clk 0:00:23]} 31. Qf4 {[%clk 0:00:18.2]} 31... Ng6 {[%clk 0:00:19.1]} 32.
Qf2 {[%clk 0:00:16.9]} 32... Ne5 {[%clk 0:00:19.7]} 33. Qf4 {[%clk 0:00:14.6]}
33... Ng6 {[%clk 0:00:20.9]} 34. Qf2 {[%clk 0:00:14.9]} 34... f4 {[%clk
0:00:22.8]} 35. Bg4 {[%clk 0:00:13.3]} 35... Ne5 {[%clk 0:00:23.1]} 36. Bh5
{[%clk 0:00:11.4]} 36... Qg5 {[%clk 0:00:23.7]} 37. Bf3 {[%clk 0:00:11.7]} 37...
Rg8 {[%clk 0:00:23.9]} 38. Rxd4 {[%clk 0:00:11.4]} 38... cxd4 {[%clk 0:00:23.9]}
39. Qxd4 {[%clk 0:00:12.9]} 39... Rdf8 {[%clk 0:00:25.5]} 40. Rf2 {[%clk
0:00:11.8]} 40... Rg7 {[%clk 0:00:26.1]} 41. Qd1 {[%clk 0:00:07.8]} 41... Re8
{[%clk 0:00:21.4]} 42. Bh5 {[%clk 0:00:07.8]} 42... Reg8 {[%clk 0:00:21.7]} 43.
Bf3 {[%clk 0:00:08.6]} 43... Re8 {[%clk 0:00:21.2]} 44. Bh5 {[%clk 0:00:09.1]}
44... Nd3 {[%clk 0:00:21]} 45. Qxd3 {[%clk 0:00:07.3]} 45... Qxg2+ {[%clk
0:00:16.6]} 46. Rxg2 {[%clk 0:00:05.6]} 46... Re1+ {[%clk 0:00:18.5]} 47. Qf1
{[%clk 0:00:04.8]} 47... Rxf1+ {[%clk 0:00:19.5]} 0-1

[Event "*** Titled Tuesday Blitz"]
[Site "Chess.com"]
[Date "2019.01.01"]
[Round "6"]
[White "Viaje"]
[Black "pedroholly22"]
[Result "0-1"]
[WhiteElo "2320"]
[BlackElo "2253"]
[TimeControl "180+2"]
[EndTime "14:27:02 PST"]
[Termination "pedroholly22 won by resignation"]

1. d4 {[%clk 0:03:01.9]} 1... Nf6 {[%clk 0:02:56.8]} 2. c4 {[%clk 0:03:02.9]}
2... g6 {[%clk 0:02:56.3]} 3. Nc3 {[%clk 0:03:03]} 3... Bg7 {[%clk 0:02:54.5]}
4. e4 {[%clk 0:03:03.9]} 4... d6 {[%clk 0:02:54.5]} 5. Be2 {[%clk 0:03:05.4]}
5... O-O {[%clk 0:02:54.2]} 6. Nf3 {[%clk 0:03:07]} 6... c5 {[%clk 0:02:53.4]}
7. d5 {[%clk 0:03:05.5]} 7... e6 {[%clk 0:02:53]} 8. O-O {[%clk 0:03:07.1]} 8...
exd5 {[%clk 0:02:53]} 9. exd5 {[%clk 0:03:09]} 9... Re8 {[%clk 0:02:52.4]} 10.
h3 {[%clk 0:03:05.3]} 10... Bf5 {[%clk 0:02:49.7]} 11. Bg5 {[%clk 0:02:59.8]}
11... h6 {[%clk 0:02:50.3]} 12. Be3 {[%clk 0:03:00.4]} 12... Ne4 {[%clk
0:02:49.8]} 13. Nxe4 {[%clk 0:03:01.3]} 13... Bxe4 {[%clk 0:02:51.7]} 14. Qd2
{[%clk 0:02:56.3]} 14... g5 {[%clk 0:02:51.3]} 15. Rae1 {[%clk 0:02:50.8]} 15...
Nd7 {[%clk 0:02:51.6]} 16. Qc1 {[%clk 0:02:50.1]} 16... Qf6 {[%clk 0:02:50.5]}
17. Nd2 {[%clk 0:02:48.7]} 17... Bg6 {[%clk 0:02:44.1]} 18. b3 {[%clk
0:02:38.4]} 18... Qc3 {[%clk 0:02:39.8]} 19. Nf3 {[%clk 0:02:36.1]} 19... a5
{[%clk 0:02:27.4]} 20. h4 {[%clk 0:02:25]} 20... g4 {[%clk 0:02:22.4]} 21. Nh2
{[%clk 0:02:07.2]} 21... h5 {[%clk 0:02:18.7]} 22. Bf4 {[%clk 0:01:52]} 22... a4
{[%clk 0:02:15.2]} 23. Bxg4 {[%clk 0:01:27]} 23... hxg4 {[%clk 0:02:10.4]} 24.
Qxc3 {[%clk 0:01:27.5]} 24... Bxc3 {[%clk 0:02:09.9]} 25. Rxe8+ {[%clk
0:01:29.1]} 25... Rxe8 {[%clk 0:02:09.8]} 26. Bxd6 {[%clk 0:01:30.6]} 26... Bd3
{[%clk 0:01:59.9]} 27. Rc1 {[%clk 0:01:23.4]} 27... Bb2 {[%clk 0:01:58.3]} 28.
Rd1 {[%clk 0:01:24.6]} 28... Bc2 {[%clk 0:01:59.1]} 29. Rd2 {[%clk 0:01:25]}
29... axb3 {[%clk 0:01:52.4]} 30. axb3 {[%clk 0:01:25.3]} 30... Bxb3 {[%clk
0:01:46.1]} 31. Rxb2 {[%clk 0:01:23]} 31... Re1+ {[%clk 0:01:45.7]} 32. Nf1
{[%clk 0:01:24.1]} 32... Bxc4 {[%clk 0:01:46.7]} 33. Rxb7 {[%clk 0:01:24.7]}
33... Rxf1+ {[%clk 0:01:46]} 34. Kh2 {[%clk 0:01:25.8]} 34... Nf6 {[%clk
0:01:41.1]} 35. Bxc5 {[%clk 0:01:26.1]} 35... Nxd5 {[%clk 0:01:40.5]} 36. Bd4
{[%clk 0:01:21.3]} 36... Rd1 {[%clk 0:01:33.3]} 37. Bb2 {[%clk 0:01:07.3]} 37...
Rd2 {[%clk 0:00:59.1]} 38. Kg3 {[%clk 0:01:07]} 38... Ne7 {[%clk 0:00:47.6]} 39.
h5 {[%clk 0:00:52.3]} 39... Be6 {[%clk 0:00:34.8]} 40. Rb8+ {[%clk 0:00:43]}
40... Nc8 {[%clk 0:00:34.2]} 41. Bf6 {[%clk 0:00:29.9]} 41... Rd3+ {[%clk
0:00:35.1]} 42. Kh4 {[%clk 0:00:26.8]} 42... Kh7 {[%clk 0:00:31.8]} 43. Rb5
{[%clk 0:00:21.3]} 43... Rd1 {[%clk 0:00:27.8]} 44. Kg5 {[%clk 0:00:19.3]} 44...
Nd6 {[%clk 0:00:25.5]} 45. Re5 {[%clk 0:00:17]} 45... Rf1 {[%clk 0:00:23.4]} 46.
Re2 {[%clk 0:00:15.9]} 46... Rxf2 {[%clk 0:00:21.6]} 47. Rxf2 {[%clk 0:00:16.9]}
47... Ne4+ {[%clk 0:00:23.1]} 48. Kf4 {[%clk 0:00:18.2]} 48... Nxf2 {[%clk
0:00:24.3]} 49. Ke3 {[%clk 0:00:18]} 49... Nd1+ {[%clk 0:00:23.4]} 50. Ke2
{[%clk 0:00:19.1]} 50... Bb3 {[%clk 0:00:22.4]} 51. Bd4 {[%clk 0:00:17.7]} 51...
Kh6 {[%clk 0:00:22.9]} 0-1

[Event "*** Titled Tuesday Blitz"]
[Site "Chess.com"]
[Date "2019.01.01"]
[Round "6"]
[White "Supernotar"]
[Black "GulamaliRises"]
[Result "1-0"]
[WhiteElo "2439"]
[BlackElo "2624"]
[TimeControl "180+2"]
[EndTime "14:27:18 PST"]
[Termination "Supernotar won by checkmate"]

1. d4 {[%clk 0:03:00]} 1... Nf6 {[%clk 0:02:57.1]} 2. c4 {[%clk 0:03:01]} 2...
e6 {[%clk 0:02:58.6]} 3. Nf3 {[%clk 0:03:02.2]} 3... c5 {[%clk 0:02:57.8]} 4. d5
{[%clk 0:03:01.6]} 4... exd5 {[%clk 0:02:59.5]} 5. cxd5 {[%clk 0:03:02.5]} 5...
d6 {[%clk 0:03:01.2]} 6. Nc3 {[%clk 0:03:03.4]} 6... g6 {[%clk 0:03:01.7]} 7.
Nd2 {[%clk 0:03:03.9]} 7... Bg7 {[%clk 0:02:54.1]} 8. g3 {[%clk 0:03:05]} 8...
O-O {[%clk 0:02:54.9]} 9. Bg2 {[%clk 0:03:05.7]} 9... Nbd7 {[%clk 0:02:48.3]}
10. O-O {[%clk 0:03:05.1]} 10... Ne5 {[%clk 0:02:37.9]} 11. h3 {[%clk
0:03:04.2]} 11... Nh5 {[%clk 0:02:33.7]} 12. Kh2 {[%clk 0:03:04.5]} 12... f5
{[%clk 0:02:31.5]} 13. f4 {[%clk 0:03:05.3]} 13... Nf7 {[%clk 0:02:17.3]} 14.
Nc4 {[%clk 0:03:06]} 14... Bxc3 {[%clk 0:02:04.1]} 15. bxc3 {[%clk 0:03:06.5]}
15... Nf6 {[%clk 0:02:05.5]} 16. a4 {[%clk 0:02:51.3]} 16... b6 {[%clk
0:02:03.4]} 17. Nd2 {[%clk 0:02:51]} 17... Re8 {[%clk 0:02:02.3]} 18. c4 {[%clk
0:02:50.8]} 18... h5 {[%clk 0:02:02.5]} 19. Bb2 {[%clk 0:02:45.7]} 19... h4
{[%clk 0:02:03.5]} 20. Rf3 {[%clk 0:02:43.6]} 20... Kh7 {[%clk 0:01:56.3]} 21.
e3 {[%clk 0:02:33.2]} 21... Ne4 {[%clk 0:01:44.1]} 22. Nxe4 {[%clk 0:02:25.5]}
22... fxe4 {[%clk 0:01:45]} 23. Rf2 {[%clk 0:02:22.9]} 23... hxg3+ {[%clk
0:01:46.2]} 24. Kxg3 {[%clk 0:02:24]} 24... Nh6 {[%clk 0:01:47.9]} 25. Qd2
{[%clk 0:02:22.3]} 25... Nf5+ {[%clk 0:01:48.3]} 26. Kh2 {[%clk 0:02:23.5]}
26... Qh4 {[%clk 0:01:49.5]} 27. Re1 {[%clk 0:02:15.4]} 27... Bd7 {[%clk
0:01:39]} 28. Kg1 {[%clk 0:02:06.4]} 28... Bxa4 {[%clk 0:01:38.1]} 29. Qc3
{[%clk 0:02:05.1]} 29... b5 {[%clk 0:01:34]} 30. cxb5 {[%clk 0:02:04.6]} 30...
Bxb5 {[%clk 0:01:35.9]} 31. Ba1 {[%clk 0:02:02.5]} 31... Bd3 {[%clk 0:01:33]}
32. Rb2 {[%clk 0:02:01.2]} 32... Reb8 {[%clk 0:01:28.1]} 33. Rd1 {[%clk
0:01:46.8]} 33... Qg3 {[%clk 0:01:18]} 34. Qf6 {[%clk 0:01:38.5]} 34... Qxe3+
{[%clk 0:00:56.5]} 35. Kh1 {[%clk 0:01:38.5]} 35... Rxb2 {[%clk 0:00:52.7]} 36.
Bxb2 {[%clk 0:01:38.7]} 36... Qxf4 {[%clk 0:00:54]} 37. Qf7+ {[%clk 0:01:31.9]}
37... Kh6 {[%clk 0:00:55.2]} 38. Bg7+ {[%clk 0:00:29.7]} 38... Kh5 {[%clk
0:00:53.6]} 39. Kg1 {[%clk 0:00:30.1]} 39... c4 {[%clk 0:00:42.5]} 40. Bf6
{[%clk 0:00:26.1]} 40... e3 {[%clk 0:00:40.4]} 41. Qh7+ {[%clk 0:00:11.1]} 41...
Nh6 {[%clk 0:00:41.6]} 42. Bg7 {[%clk 0:00:09.1]} 42... Rf8 {[%clk 0:00:13.3]}
43. Bf3+ {[%clk 0:00:09]} 43... Kh4 {[%clk 0:00:14.5]} 44. Bxh6 {[%clk
0:00:09.3]} 44... Qxf3 {[%clk 0:00:11.9]} 45. Bxf8+ {[%clk 0:00:06.6]} 45... Kg5
{[%clk 0:00:12.4]} 46. Be7+ {[%clk 0:00:07.4]} 46... Kf5 {[%clk 0:00:11.6]} 47.
Qf7+ {[%clk 0:00:08.6]} 47... Ke4 {[%clk 0:00:13.1]} 48. Qe6+ {[%clk 0:00:09.4]}
48... Kd4 {[%clk 0:00:13.7]} 49. Bf6+ {[%clk 0:00:10.9]} 49... Kc5 {[%clk
0:00:14.6]} 50. Qc8+ {[%clk 0:00:12.1]} 50... Kb4 {[%clk 0:00:05.5]} 51. Qb7+
{[%clk 0:00:13.4]} 51... Kc5 {[%clk 0:00:06.8]} 52. Qc7+ {[%clk 0:00:14.5]}
52... Kb4 {[%clk 0:00:08.5]} 53. Qxd6+ {[%clk 0:00:15.6]} 53... Kb3 {[%clk
0:00:09.4]} 54. Qb8+ {[%clk 0:00:16.2]} 54... Kc2 {[%clk 0:00:10.7]} 55. Qb1#
{[%clk 0:00:14]} 1-0